bitfinex/quotes_SOLUSD_20240906
["timestamp","ask_amount","ask_price","bid_price","bid_amount"]
[1725653763208,54.82076431,125.95,125.91,28.6175]
[1725653763439,54.82076431,125.95,125.91,20.6754]
[1725653763741,46.88066431,125.95,125.91,0.8212]
[1725653764036,7.9413,125.93,125.91,0.8212]
[1725653764239,77.3045,125.92,125.91,0.8212]
[1725653766037,78.68845315,125.92,125.91,0.8212]
[1725653766228,77.3045,125.92,125.91,0.8212]
[1725653769444,7.9429,125.9,125.85,19.8645]
[1725653769650,45.0,125.89,125.85,19.8645]
[1725653769830,7.9428,125.9,125.86,7.9449]
[1725653770739,7.9423,125.91,125.87,7.9446]
[1725653770917,45.0,125.9,125.87,7.9446]
[1725653771122,69.363,125.92,125.88,7.9438]
[1725653771532,77.3046,125.92,125.88,7.9438]
[1725653772546,69.363,125.92,125.87,19.8611]
[1725653772854,7.9423,125.91,125.87,27.8056]
[1725653773051,77.3046,125.92,125.88,7.944]
[1725653775243,77.3046,125.92,125.9,7.9427]
[1725653775244,17.4689,125.92,125.9,7.9427]
[1725653775424,17.4689,125.92,125.89,27.8015]
[1725653776654,25.4105,125.92,125.89,19.8583]
[1725653776833,52.9423,125.91,125.86,27.8067]
[1725653777152,25.4105,125.92,125.88,7.944]
[1725653778152,45.0,125.91,125.88,7.944]
[1725653778332,25.4105,125.92,125.88,7.944]
[1725653780359,7.9423,125.91,125.87,7.9446]
[1725653780561,45.0,125.9,125.87,7.9446]
[1725653781555,45.0,125.9,125.86,19.862]
[1725653781763,6.5105,125.9,125.84,7.9461]
[1725653782057,45.0,125.89,125.85,19.8647]
[1725653782244,14.4534,125.9,125.86,7.9449]
[1725653783740,45.0,125.89,125.86,7.9449]
[1725653783939,52.9435,125.89,125.85,27.8104]
[1725653784157,25.2479,125.87,125.83,7.9472]
[1725653784354,25.2479,125.87,125.82,19.8686]
[1725653784355,54.82606431,125.86,125.82,27.8162]
[1725653784666,52.9454,125.86,125.82,27.8162]
[1725653786367,17.3028,125.87,125.85,7.9458]
[1725653786570,17.3028,125.87,125.84,19.866]
[1725653786862,17.3028,125.87,125.84,27.8123]
[1725653788864,1.88066431,125.86,125.83,7.947]
[1725653789162,45.0,125.86,125.82,7.9473]
[1725653789538,25.2479,125.87,125.82,7.9473]
[1725653789965,9.82596431,125.86,125.82,7.9473]
[1725653790176,61.74796431,125.85,125.81,19.8702]
[1725653790463,61.74796431,125.85,125.8,7.9486]
[1725653790464,6.9214,125.85,125.8,7.9486]
[1725653790667,45.0,125.84,125.8,7.9486]
[1725653791471,45.0,125.84,125.79,7.9496]
[1725653791760,52.9468,125.84,125.79,7.9496]
[1725653792753,52.9468,125.84,125.8,7.9491]
[1725653793466,45.0,125.84,125.8,7.9491]
[1725653793663,6.9214,125.85,125.81,7.948]
[1725653793839,6.9214,125.85,125.82,7.9478]
[1725653794036,14.8673,125.85,125.8,19.8717]
[1725653794235,45.0,125.84,125.79,7.9495]
[1725653795255,7.9473,125.83,125.79,7.9495]
[1725653795461,7.9473,125.83,125.78,8.7713538]
[1725653795462,45.0,125.82,125.78,8.7713538]
[1725653796865,45.0,125.82,125.79,7.9496]
[1725653797249,7.9468,125.84,125.79,7.9496]
[1725653797456,45.0,125.83,125.79,7.9496]
[1725653798363,14.8676,125.85,125.8,7.9486]
[1725653798665,14.8677,125.85,125.8,7.9488]
[1725653799048,14.8677,125.85,125.81,7.9484]
[1725653799745,7.9483,125.82,125.78,0.8212538]
[1725653799947,25.3402,125.83,125.78,0.8212538]
[1725653800145,25.3402,125.83,125.79,7.9495]
[1725653800375,45.0,125.82,125.79,7.9495]
[1725653801657,25.3402,125.83,125.8,7.949]
[1725653801658,17.3928,125.83,125.8,7.949]
[1725653802467,17.3928,125.83,125.79,7.9495]
[1725653802971,25.34,125.83,125.78,28.6471538]
[1725653803176,45.0,125.82,125.79,7.9496]
[1725653803475,17.3928,125.83,125.79,7.9496]
[1725653804361,45.0,125.82,125.79,7.9496]
[1725653805173,17.3928,125.83,125.79,7.9496]
[1725653806272,45.0,125.82,125.78,28.6471538]
[1725653806476,46.88066431,125.82,125.78,0.8212538]
[1725653806774,54.82866431,125.82,125.78,0.8212538]
[1725653806988,52.948,125.82,125.78,0.8212538]
[1725653812271,52.948,125.82,125.78,8.7714538]
[1725653815184,17.3928,125.83,125.78,0.8212538]
[1725653815387,17.3928,125.83,125.8,7.9489]
[1725653815695,17.3928,125.83,125.79,19.8741]
[1725653815696,17.3928,125.83,125.79,27.8237]
[1725653816482,17.3928,125.83,125.8,7.949]
[1725653817070,17.3928,125.83,125.79,27.8236]
[1725653817269,17.3928,125.83,125.8,7.949]
[1725653817491,17.3928,125.83,125.79,27.8236]
[1725653817878,25.3404,125.83,125.79,19.8741]
[1725653818077,45.0,125.82,125.79,19.8741]
[1725653818472,45.0,125.82,125.79,27.8236]
[1725653818679,17.3928,125.83,125.79,27.8236]
[1725653819374,25.3402,125.83,125.79,27.8236]
[1725653819577,45.0,125.82,125.79,27.8236]
[1725653820682,52.9478,125.82,125.78,0.8212538]
[1725653820990,7.9497,125.79,125.78,0.8212538]
[1725653821184,19.36876431,125.79,125.7,7.955]
[1725653821389,183.6519,125.78,125.7,27.8423]
[1725653821695,7.9521,125.76,125.71,7.9547]
[1725653821899,45.0,125.75,125.71,7.9547]
[1725653823792,138.6519,125.78,125.72,19.8845]
[1725653824095,138.6519,125.78,125.73,7.9534]
[1725653824096,45.0,125.77,125.73,7.9534]
[1725653824270,138.6519,125.78,125.75,7.9518]
[1725653824600,7.1622,125.81,125.76,19.8784]
[1725653824893,7.58922468,125.85,125.78,19.8751]
[1725653824894,7.1622,125.84,125.78,19.8751]
[1725653825285,7.1622,125.84,125.78,7.9503]
[1725653825467,10.59704768,125.86,125.78,19.29245943]
[1725653825668,7.91107637,125.88,125.84,7.9462]
[1725653825883,7.91107637,125.88,125.79,1.58945916]
[1725653825884,25.0542,125.89,125.82,19.29245943]
[1725653826068,25.0542,125.89,125.81,1.58896333]
[1725653826472,25.0542,125.89,125.86,7.9447]
[1725653826876,10.59704768,125.88,125.82,27.8169]
[1725653827079,12.47771199,125.88,125.82,27.8169]
[1725653827285,10.59704768,125.88,125.83,7.9471]
[1725653827589,10.59704768,125.88,125.84,7.9464]
[1725653828284,18.54154768,125.88,125.83,7.9471]
[1725653828679,7.9445,125.88,125.83,7.9471]
[1725653828876,32.9978,125.89,125.82,19.8691]
[1725653829286,25.0542,125.89,125.88,7.944]
[1725653829603,17.0045,125.93,125.88,19.8594]
[1725653829904,17.0045,125.93,125.92,7.9415]
[1725653830198,17.0045,125.93,125.91,7.9421]
[1725653831378,17.0045,125.93,125.92,7.9415]
[1725653831778,17.0045,125.93,125.91,7.9421]
[1725653834094,17.0045,125.93,125.9,27.7986]
[1725653836202,17.0045,125.93,125.91,7.942]
[1725653836404,17.8758,125.97,125.92,24.15589478]
[1725653836607,6.7655,126.0,125.96,7.939]
[1725653836790,6.7655,126.0,125.96,19.8467]
[1725653838481,6.7655,126.0,125.97,7.9379]
[1725653838690,17.8758,126.01,125.99,7.937]
[1725653838897,17.8758,126.01,125.99,9.52421175]
[1725653839113,17.8758,126.01,126.0,7.9365]
[1725653839414,6.7655,126.03,126.0,7.9365]
[1725653840592,6.7655,126.03,125.98,19.8435]
[1725653840807,6.7655,126.03,125.99,7.9366]
[1725653841888,7.9357,126.02,125.98,19.8435]
[1725653842207,14.7003,126.03,125.98,27.7812]
[1725653842406,7.9354,126.02,125.98,19.8435]
[1725653843394,7.936,126.01,125.96,7.9388]
[1725653843717,1.88066431,126.0,125.92,19.8529]
[1725653843898,46.88066431,126.0,125.92,19.8529]
[1725653844103,7.9383,125.98,125.93,7.9403]
[1725653844310,7.9372,125.99,125.94,7.9402]
[1725653844915,7.9386,125.97,125.93,7.9407]
[1725653845117,7.9384,125.97,125.92,27.7939]
[1725653845291,7.9392,125.96,125.92,27.7939]
[1725653845620,7.9385,125.97,125.92,27.7939]
[1725653846309,15.0078,125.96,125.92,19.8529]
[1725653846512,7.9407,125.94,125.89,19.8578]
[1725653846888,31.5156,125.96,125.91,7.942]
[1725653847902,1.88066431,125.95,125.9,7.9427]
[1725653848218,1.88066431,125.95,125.89,19.8578]
[1725653848219,7.9413,125.93,125.89,19.8578]
[1725653848397,7.9409,125.93,125.88,7.9436]
[1725653848598,7.9409,125.93,125.89,7.9433]
[1725653849006,45.0,125.95,125.92,7.9414]
[1725653849311,23.5761,125.96,125.92,7.9414]
[1725653849312,31.5152,125.96,125.92,7.9414]
[1725653849525,23.5761,125.96,125.92,27.7947]
[1725653851095,23.5761,125.96,125.89,19.8573]
[1725653851299,46.88066431,125.95,125.89,27.8005]
[1725653851522,7.9405,125.94,125.89,27.8005]
[1725653851727,7.9405,125.94,125.9,7.9427]
[1725653852108,52.9398,125.95,125.9,7.9427]
[1725653853593,45.0,125.95,125.91,7.942]
[1725653853800,31.5152,125.96,125.91,19.8551]
[1725653855121,9.82076431,125.95,125.88,19.8589]
[1725653855297,9.82076431,125.95,125.89,7.9434]
[1725653855298,52.9404,125.94,125.89,7.9434]
[1725653855503,52.9404,125.94,125.9,7.9428]
[1725653855797,23.5761,125.96,125.92,7.9414]
[1725653856427,23.5761,125.96,125.89,25.74433573]
[1725653856734,23.5761,125.96,125.89,1.58844095]
[1725653857398,16.5074,125.96,125.94,27.7906]
[1725653857894,16.5074,125.96,125.95,7.9396]
[1725653858827,16.5074,125.96,125.94,27.7906]
[1725653863606,16.5074,125.96,125.95,7.9396]
[1725653864040,16.5074,125.96,125.94,27.7904]
[1725653865038,16.5074,125.96,125.95,7.9396]
[1725653866745,16.5074,125.96,125.94,27.7905]
[1725653867316,16.5074,125.96,125.93,7.9406]
[1725653869334,16.5074,125.96,125.93,27.7927]
[1725653870914,16.5074,125.96,125.94,7.9402]
[1725653872335,16.5074,125.96,125.93,19.8521]
[1725653872635,16.5074,125.96,125.93,27.7929]
[1725653873441,16.5074,125.96,125.94,7.9398]
[1725653873647,24.0802,125.99,125.96,7.9387]
[1725653873828,24.0802,125.99,125.97,19.8458]
[1725653874146,17.4134,125.99,125.98,7.9377]
[1725653874351,155.2325,126.02,125.98,7.9377]
[1725653874827,155.2325,126.02,125.99,19.8417]
[1725653875029,155.2325,126.02,126.01,7.9358]
[1725653875643,155.2325,126.02,125.99,27.7787]
[1725653876645,155.2325,126.02,125.96,19.8467]
[1725653876851,45.0,126.01,125.96,19.8467]
[1725653877027,155.2325,126.02,125.96,19.8467]
[1725653877745,45.0,126.01,125.97,7.9382]
[1725653878265,163.1682,126.02,125.97,7.9382]
[1725653879152,31.3682,126.02,125.97,7.9382]
[1725653879352,23.4325,126.02,125.99,7.9366]
[1725653879520,23.4325,126.02,125.98,27.7805]
[1725653880954,23.4325,126.02,125.99,7.9368]
[1725653882155,31.3677,126.02,125.98,27.7805]
[1725653882448,31.3677,126.02,125.89,10.0]
[1725653882449,46.88066431,126.01,125.94,7.9401]
[1725653882646,46.88066431,126.01,125.93,7.9404]
[1725653882647,7.9379,125.98,125.93,7.9404]
[1725653882849,46.88066431,126.01,125.92,19.8532]
[1725653882850,6.5024,125.96,125.92,19.8532]
[1725653883035,14.4416,125.96,125.92,19.8532]
[1725653883425,7.9396,125.95,125.9,7.9425]
[1725653883643,7.9396,125.95,125.91,7.9421]
[1725653884148,6.5024,125.96,125.86,19.8629]
[1725653884149,26.3502,125.96,125.86,19.8629]
[1725653884359,45.0,125.95,125.89,7.9434]
[1725653885367,7.9407,125.94,125.89,7.9434]
[1725653885651,7.9407,125.94,125.9,7.9427]
[1725653885946,45.0,125.95,125.91,7.942]
[1725653886143,6.5024,125.96,125.91,7.942]
[1725653886853,6.5024,125.96,125.9,19.8563]
[1725653887033,6.5024,125.96,125.91,7.9416]
[1725653887238,6.5024,125.96,125.87,19.8607]
[1725653887562,7.9422,125.91,125.87,19.8607]
[1725653887740,7.9422,125.91,125.87,27.8053]
[1725653888250,7.9417,125.92,125.87,27.8053]
[1725653888555,7.9417,125.92,125.88,7.944]
[1725653890953,7.941,125.93,125.88,7.944]
[1725653891351,17.5238,125.95,125.89,21.44662874]
[1725653891548,17.5238,125.95,125.91,7.9416]
[1725653896234,17.5238,125.95,125.92,7.9415]
[1725653896854,17.5238,125.95,125.93,19.852]
[1725653897062,17.5238,125.95,125.94,7.9402]
[1725653897438,17.5238,125.95,125.93,27.7927]
[1725653897632,17.5238,125.95,125.93,19.852]
[1725653898048,6.5024,125.96,125.95,7.9396]
[1725653900940,6.5024,125.96,125.94,7.94]
[1725653901143,6.5024,125.96,125.93,19.852]
[1725653901347,6.5024,125.96,125.94,7.9399]
[1725653901567,6.5024,125.96,125.95,7.9396]
[1725653902560,6.5024,125.96,125.93,19.852]
[1725653902891,6.5024,125.96,125.9,19.8558]
[1725653902892,7.9397,125.95,125.9,19.8558]
[1725653903163,14.4416,125.96,125.91,7.9421]
[1725653903540,52.9398,125.95,125.91,7.9421]
[1725653904355,14.4414,125.96,125.91,7.9421]
[1725653904865,14.4414,125.96,125.92,7.9415]
[1725653905161,6.5024,125.96,125.92,19.8534]
[1725653905344,6.5024,125.96,125.94,7.94]
[1725653906947,14.4415,125.96,125.92,27.7946]
[1725653907152,6.5024,125.96,125.93,7.9408]
[1725653907548,14.4414,125.96,125.92,27.7948]
[1725653907860,16.6873,125.93,125.89,19.8573]
[1725653908241,16.6873,125.93,125.86,59.5869]
[1725653908468,16.6873,125.93,125.88,7.9439]
[1725653908469,7.9417,125.92,125.88,7.9439]
[1725653909443,7.9428,125.9,125.86,19.8623]
[1725653909941,14.9802,125.91,125.86,27.8074]
[1725653910665,14.9801,125.91,125.87,7.9443]
[1725653912676,7.0379,125.91,125.87,7.9445]
[1725653912970,14.98,125.91,125.87,7.9445]
[1725653913364,7.0379,125.91,125.89,7.9431]
[1725653913939,16.6873,125.93,125.91,7.942]
[1725653914364,16.6873,125.93,125.9,27.7991]
[1725653914743,16.6873,125.93,125.91,7.9421]
[1725653917371,16.6873,125.93,125.89,7.9428]
[1725653918075,16.6873,125.93,125.9,7.9428]
[1725653919278,16.6873,125.93,125.9,7.9426]
[1725653920078,16.6873,125.93,125.89,19.8582]
[1725653920079,16.6873,125.93,125.91,7.942]
[1725653920265,6.86,125.95,125.94,7.9402]
[1725653920567,6.86,125.95,125.93,27.7925]
[1725653920766,16.7979,125.97,125.94,7.9402]
[1725653920971,16.7979,125.97,125.95,7.9395]
[1725653921360,16.7979,125.97,125.94,7.94]
[1725653921874,16.7979,125.97,125.95,7.9395]
[1725653922376,16.7979,125.97,125.93,19.8519]
[1725653922750,24.7364,125.97,125.93,19.8519]
[1725653922948,16.7979,125.97,125.93,27.7926]
[1725653924355,16.7979,125.97,125.93,19.8519]
[1725653924563,16.7979,125.97,125.94,7.9401]
[1725653927772,16.7979,125.97,125.93,27.7926]
[1725653929171,16.7979,125.97,125.88,39.7181]
[1725653929172,16.7979,125.97,125.9,19.8558]
[1725653929355,45.0,125.96,125.9,19.8558]
[1725653929676,24.7365,125.97,125.92,7.9411]
[1725653931278,7.9393,125.96,125.9,19.8558]
[1725653931586,24.7365,125.97,125.92,7.9415]
[1725653932090,16.7979,125.97,125.93,7.9408]
[1725653935087,16.7979,125.97,125.95,7.9395]
[1725653935790,16.7979,125.97,125.94,27.7902]
[1725653937580,16.7979,125.97,125.95,7.9394]
[1725653938088,16.7979,125.97,125.94,27.7901]
[1725653938272,16.7979,125.97,125.95,7.9396]
[1725653940765,16.7979,125.97,125.94,27.7902]
[1725653940965,16.7979,125.97,125.94,19.8501]
[1725653941197,16.7979,125.97,125.94,27.7901]
[1725653942606,16.7979,125.97,125.92,7.9411]
[1725653942767,24.7365,125.97,125.92,7.9411]
[1725653944889,24.7365,125.97,125.88,19.8588]
[1725653944890,1.88066431,125.96,125.88,19.8588]
[1725653945096,6.8516,125.89,125.81,12.90996106]
[1725653945300,23.6935,125.89,125.85,19.8638]
[1725653945667,23.6935,125.89,125.85,27.8093]
[1725653945866,23.6935,125.89,125.84,7.9464]
[1725653945867,31.637,125.89,125.84,7.9464]
[1725653946465,31.637,125.89,125.85,7.9459]
[1725653946975,31.637,125.89,125.81,59.05653518]
[1725653946976,31.637,125.89,125.84,19.8661]
[1725653947376,23.6935,125.89,125.85,7.9458]
[1725653949091,31.637,125.89,125.85,7.9458]
[1725653949408,23.6935,125.89,125.84,19.8661]
[1725653949564,6.8654,125.85,125.81,27.8191]
[1725653949772,6.8654,125.85,125.82,7.9477]
[1725653950504,6.8654,125.85,125.83,7.9471]
[1725653950678,16.9014,125.87,125.85,7.9458]
[1725653951294,16.9014,125.87,125.84,7.9465]
[1725653951482,16.9014,125.87,125.85,7.9459]
[1725653952798,16.9014,125.87,125.86,7.9453]
[1725653952977,16.9014,125.87,125.83,19.867]
[1725653953382,16.9014,125.87,125.85,19.864]
[1725653953978,16.9014,125.87,125.86,7.9453]
[1725653954580,16.9014,125.87,125.85,19.864]
[1725653956085,16.9014,125.87,125.86,7.9453]
[1725653956773,16.9014,125.87,125.85,27.8097]
[1725653958194,16.9014,125.87,125.82,19.8684]
[1725653958499,16.9014,125.87,125.81,41.32840892]
[1725653959077,16.9014,125.87,125.84,19.8659]
[1725653959482,16.9014,125.87,125.84,27.8119]
[1725653959691,16.9014,125.87,125.85,7.9458]
[1725653960798,16.9014,125.87,125.78,59.6266]
[1725653960995,52.9458,125.86,125.81,7.9483]
[1725653961200,45.0,125.86,125.81,7.9483]
[1725653961383,23.7049,125.85,125.8,19.8721]
[1725653961803,31.6509,125.85,125.79,7.9492]
[1725653962000,31.6509,125.85,125.75,41.35097816]
[1725653962301,31.6509,125.85,125.79,27.8232]
[1725653962511,23.7049,125.85,125.79,19.8735]
[1725653962801,23.7049,125.85,125.8,7.949]
[1725653963591,23.7049,125.85,125.78,7.9498]
[1725653963901,45.0,125.84,125.76,19.8784]
[1725653964203,25.58556431,125.85,125.78,19.8753]
[1725653964204,23.7049,125.85,125.78,19.8753]
[1725653964581,31.6513,125.85,125.79,7.9496]
[1725653965206,9.82716431,125.84,125.78,27.8255]
[1725653965696,45.0,125.83,125.78,27.8255]
[1725653966288,52.9473,125.83,125.78,27.8252]
[1725653966615,25.24866431,125.82,125.78,27.8252]
[1725653966902,23.368,125.82,125.78,27.8252]
[1725653968107,23.368,125.82,125.76,7.9511]
[1725653968108,31.316,125.82,125.76,7.9511]
[1725653968291,45.0,125.81,125.76,7.9511]
[1725653970305,7.9499,125.79,125.72,19.8843]
[1725653970610,7.0487,125.77,125.72,27.8383]
[1725653970789,15.0002,125.77,125.72,27.8383]
[1725653970994,7.0487,125.77,125.72,19.8843]
[1725653971202,7.0487,125.77,125.72,27.8382]
[1725653971406,7.0487,125.77,125.72,19.8843]
[1725653971923,7.0487,125.77,125.75,19.8804]
[1725653972298,7.0487,125.77,125.74,7.9523]
[1725653972509,7.0487,125.77,125.75,7.9517]
[1725653973596,7.0487,125.77,125.74,27.8339]
[1725653974105,8.92936431,125.77,125.74,27.8339]
[1725653974317,7.0487,125.77,125.71,19.8857]
[1725653974530,7.0487,125.77,125.72,7.9539]
[1725653974531,45.0,125.76,125.72,7.9539]
[1725653975639,15.1135,125.75,125.71,27.8403]
[1725653975932,7.1792,125.73,125.72,7.9541]
[1725653976303,7.1792,125.73,125.71,27.8399]
[1725653977613,7.1792,125.73,125.72,7.9541]
[1725653978208,7.1792,125.73,125.71,27.84]
[1725653979022,7.1792,125.73,125.72,7.9541]
[1725653979219,7.1792,125.73,125.71,27.8403]
[1725653980526,15.1615,125.72,125.63,19.31613518]
[1725653980823,15.1615,125.72,125.66,8.7790538]
[1725653980824,9.83586431,125.71,125.66,8.7790538]
[1725653981021,1.88066431,125.7,125.66,8.7790538]
[1725653981531,6.886,125.7,125.66,8.7790538]
[1725653981704,25.39556431,125.69,125.66,0.8212538]
[1725653982038,1.88066431,125.68,125.66,0.8212538]
[1725653982234,9.83746431,125.68,125.66,0.8212538]
[1725653982537,7.9573,125.67,125.66,0.8212538]
[1725653982712,52.9573,125.67,125.66,0.8212538]
[1725653983206,6.5955,125.66,125.62,27.8603]
[1725653983407,6.5955,125.66,125.63,7.9594]
[1725653984322,16.21,125.65,125.61,7.9605]
[1725653984618,16.21,125.65,125.59,19.905]
[1725653984619,45.0,125.64,125.59,19.905]
[1725653984927,16.21,125.62,125.59,19.905]
[1725653986431,16.21,125.62,125.59,27.8672]
[1725653989305,16.21,125.62,125.59,19.905]
[1725653989909,16.21,125.62,125.6,7.9616]
[1725653990845,16.21,125.62,125.59,27.8672]
[1725653991419,16.21,125.62,125.59,19.905]
[1725653992833,16.21,125.62,125.59,27.8672]
[1725653994621,16.21,125.62,125.59,19.905]
[1725653995757,16.21,125.62,125.55,1.5925508]
[1725653995758,1.88066431,125.61,125.57,7.9634]
[1725653996124,6.2063,125.6,125.56,27.8742]
[1725653997451,6.2063,125.6,125.57,7.9635]
[1725653997840,6.2063,125.6,125.58,7.9628]
[1725653999154,6.2063,125.6,125.58,27.8701]
[1725653999644,6.2063,125.6,125.58,19.9073]
[1725654001057,6.2063,125.6,125.56,7.9641]
[1725654001352,6.2063,125.6,125.58,7.9626]
[1725654001653,6.2063,125.6,125.59,7.9624]
[1725654002244,6.2063,125.6,125.58,7.9629]
[1725654002441,16.21,125.62,125.59,19.9055]
[1725654002635,16.21,125.62,125.61,7.9611]
[1725654002959,16.21,125.62,125.6,7.9615]
[1725654003631,16.21,125.62,125.59,27.8676]
[1725654003850,16.21,125.62,125.59,19.9055]
[1725654004047,16.21,125.62,125.59,27.8673]
[1725654004247,16.21,125.62,125.6,7.9617]
[1725654004436,16.21,125.62,125.59,27.8677]
[1725654005333,16.21,125.62,125.59,19.9055]
[1725654006159,16.21,125.62,125.6,7.9612]
[1725654006731,16.21,125.62,125.56,19.9094]
[1725654007771,45.0,125.61,125.56,19.9094]
[1725654007941,45.0,125.61,125.57,7.9632]
[1725654008663,16.21,125.62,125.58,7.9628]
[1725654008978,16.21,125.62,125.59,7.9621]
[1725654009146,16.21,125.62,125.6,7.9616]
[1725654009352,16.21,125.62,125.6,19.9041]
[1725654009669,16.21,125.62,125.6,27.8657]
[1725654009966,16.21,125.62,125.61,7.9611]
[1725654010854,6.0591,125.63,125.6,19.9041]
[1725654010855,6.5868,125.67,125.6,19.42311337]
[1725654011044,6.5868,125.67,125.66,19.8949]
[1725654011245,6.5868,125.67,125.66,27.8528]
[1725654011445,6.5868,125.67,125.63,19.8992]
[1725654011842,6.5868,125.67,125.65,7.9585]
[1725654012273,6.5868,125.67,125.66,7.9579]
[1725654012972,6.5868,125.67,125.63,19.8992]
[1725654013173,10.17643897,125.71,125.66,7.9574]
[1725654013174,15.9773,125.71,125.66,7.9574]
[1725654013355,15.9773,125.71,125.62,19.42311337]
[1725654013678,23.9323,125.71,125.65,7.9581]
[1725654014367,15.9773,125.71,125.64,19.42311337]
[1725654014680,15.9773,125.71,125.69,27.8452]
[1725654015978,22.492,125.77,125.71,19.8866]
[1725654016148,22.492,125.77,125.73,7.9533]
[1725654016347,22.492,125.77,125.73,27.8366]
[1725654016544,24.37266431,125.77,125.73,19.8833]
[1725654016844,7.9536,125.73,125.66,39.7877]
[1725654017058,7.9531,125.74,125.68,7.9562]
[1725654017651,15.1207,125.73,125.68,7.9562]
[1725654017854,6.3124,125.71,125.67,27.8494]
[1725654018059,6.3124,125.71,125.67,19.8922]
[1725654018253,7.9557,125.7,125.64,27.8562]
[1725654018460,14.2673,125.71,125.65,7.9585]
[1725654018674,14.2673,125.71,125.66,7.9577]
[1725654018849,6.3124,125.71,125.64,19.8972]
[1725654019052,6.3124,125.71,125.67,7.9571]
[1725654020060,6.3124,125.71,125.68,7.9565]
[1725654021054,6.3124,125.71,125.67,7.9571]
[1725654022781,6.3124,125.71,125.66,27.8521]
[1725654022982,14.2672,125.71,125.66,27.8523]
[1725654023866,7.9554,125.7,125.65,7.9584]
[1725654024377,14.2675,125.71,125.66,7.9578]
[1725654026077,6.3124,125.71,125.67,21.48405241]
[1725654026385,15.1207,125.73,125.71,19.8865]
[1725654026883,15.1207,125.73,125.71,27.8411]
[1725654027282,15.1207,125.73,125.72,7.9541]
[1725654028282,15.1207,125.73,125.71,27.8408]
[1725654028585,15.1207,125.73,125.72,7.9541]
[1725654029382,16.6318,125.76,125.73,27.8367]
[1725654029758,16.6318,125.76,125.74,7.9528]
[1725654031455,6.2921,125.78,125.75,19.8799]
[1725654031993,6.2921,125.78,125.72,39.7687]
[1725654031994,7.9515,125.77,125.72,27.8383]
[1725654032156,7.9521,125.76,125.7,7.9549]
[1725654032359,8.17276431,125.78,125.7,7.9549]
[1725654032360,9.83316431,125.75,125.7,7.9549]
[1725654032560,16.6318,125.74,125.66,19.8939]
[1725654032779,6.0932,125.72,125.68,7.9562]
[1725654032959,6.0932,125.72,125.69,7.956]
[1725654033160,6.0932,125.72,125.68,27.8479]
[1725654033376,6.0932,125.72,125.69,7.956]
[1725654034172,6.0932,125.72,125.7,7.9553]
[1725654035184,6.0932,125.72,125.69,7.9558]
[1725654036684,6.0932,125.72,125.7,7.9554]
[1725654037070,6.0932,125.72,125.69,7.9559]
[1725654037292,6.0932,125.72,125.7,7.9553]
[1725654037796,6.0932,125.72,125.69,7.9556]
[1725654040901,6.3043,125.73,125.7,19.8877]
[1725654042392,6.3043,125.73,125.72,7.9541]
[1725654052807,6.3043,125.73,125.72,27.8395]
[1725654052983,16.6318,125.74,125.73,7.9535]
[1725654054591,6.1169,125.76,125.74,7.9528]
[1725654060093,6.1169,125.76,125.71,19.887]
[1725654060289,1.88066431,125.75,125.71,19.887]
[1725654060692,17.83826431,125.74,125.68,5.50755912]
[1725654060998,17.83826431,125.74,125.7,7.9549]
[1725654060999,23.9106,125.74,125.7,7.9549]